fUSD/lending_fUSD_20241123
["ID","MTS","AMOUNT","RATE_DAILY","PERIOD"]
[343148365,1732381854771,-1141.34,0.00055989,120]
[343148366,1732381854784,-500.0,0.00055989,120]
[343148367,1732381854794,-1141.52494186,0.00055989,120]
[343148368,1732381854803,-500.0,0.00055989,120]
[343148369,1732381854813,-500.0,0.00055989,120]
[343148370,1732381854823,-500.0,0.00055989,120]
[343148371,1732381854832,-500.0,0.00055989,120]
[343148372,1732381854842,-500.0,0.00055989,120]
[343148373,1732381854852,-500.0,0.00055989,120]
[343148374,1732381854990,-500.0,0.00055989,120]
[343148375,1732381855000,-500.0,0.00055989,120]
[343148376,1732381855010,-948.52,0.00055989,30]
[343148377,1732381855020,-948.52,0.00055989,30]
[343148378,1732381855033,-500.0,0.00055989,120]
[343148379,1732381855043,-948.52,0.00055989,30]
[343148380,1732381855052,-500.0,0.00055989,120]
[343148381,1732381855062,-948.52,0.00055989,30]
[343148382,1732381855071,-500.0,0.00055989,120]
[343148383,1732381855081,-948.52,0.00055989,30]
[343148384,1732381855091,-500.0,0.00055989,120]
[343148385,1732381855101,-948.52,0.00055989,30]
[343148386,1732381855110,-500.0,0.00055989,120]
[343148387,1732381855120,-318.8973744,0.00055989,120]
[343148388,1732381855130,-948.52,0.00055989,30]
[343148389,1732381855139,-948.52,0.00055989,30]
[343148390,1732381855149,-948.52,0.00055989,30]
[343148391,1732381855159,-948.52,0.00055989,30]
[343148392,1732381855168,-948.52,0.00055989,30]
[343148393,1732381855178,-948.52,0.00055989,30]
[343148394,1732381855187,-948.52,0.00055989,30]
[343148395,1732381855197,-948.52,0.00055989,30]
[343148396,1732381855207,-948.52,0.00055989,30]
[343148397,1732381855217,-948.52,0.00055989,30]
[343148398,1732381855227,-948.52,0.00055989,30]
[343148399,1732381855236,-948.64657734,0.00055989,30]
[343148400,1732381855245,-500.0,0.00055989,120]
[343148401,1732381855255,-500.0,0.00055989,120]
[343148402,1732381855264,-500.0,0.00055989,120]
[343148403,1732381855273,-500.0,0.00055989,120]
[343148404,1732381855285,-500.0,0.00055989,120]
[343148405,1732381855294,-500.0,0.00055989,120]
[343148406,1732381855304,-500.0,0.00055989,120]
[343148407,1732381855313,-500.0,0.00055989,120]
[343148408,1732381855323,-500.0,0.00055989,120]
[343148409,1732381855332,-500.0,0.00055989,120]
[343148410,1732381855341,-500.0,0.00055989,120]
[343148411,1732381855351,-500.0,0.00055989,120]
[343148412,1732381855360,-500.0,0.00055989,120]
[343148413,1732381855369,-500.0,0.00055989,120]
[343148414,1732381855378,-629.12479951,0.00055989,120]
[343148415,1732381855388,-500.0,0.00055989,120]
[343148416,1732381855397,-500.0,0.00055989,120]
[343148417,1732381855407,-500.0,0.00055989,120]
[343148418,1732381855416,-1157.45,0.00055989,120]
[343148419,1732381855424,-1157.45,0.00055989,120]
[343148420,1732381855433,-500.0,0.00055989,120]
[343148421,1732381855443,-1157.45,0.00055989,120]
[343148422,1732381855452,-1157.45,0.00055989,120]
[343148423,1732381855462,-1157.45,0.00055989,120]
[343148424,1732381855472,-500.0,0.00055989,120]
[343148425,1732381855481,-500.0,0.00055989,120]
[343148426,1732381855491,-500.0,0.00055989,120]
[343148427,1732381855500,-1157.45,0.00055989,120]
[343148428,1732381855509,-1157.45,0.00055989,120]
[343148429,1732381855519,-1157.45,0.00055989,120]
[343148430,1732381855532,-500.0,0.00055989,120]
[343148431,1732381855543,-500.0,0.00055989,120]
[343148432,1732381855553,-500.0,0.00055989,120]
[343148433,1732381855563,-1157.45,0.00055989,120]
[343148434,1732381855575,-1157.45,0.00055989,120]
[343148435,1732381855584,-1157.45,0.00055989,120]
[343148436,1732381855594,-1157.45,0.00055989,120]
[343148437,1732381855604,-1157.45,0.00055989,120]
[343148438,1732381855614,-1157.45,0.00055989,120]
[343148439,1732381855623,-334.83,0.00055989,120]
[343148440,1732381855632,-1157.45,0.00055989,120]
[343148441,1732381855641,-1157.45,0.00055989,120]
[343148442,1732381855652,-1157.66747707,0.00055989,120]
[343148443,1732381855661,-500.0,0.00055989,120]
[343148444,1732381855670,-903.62,0.00055989,120]
[343148445,1732381855680,-500.0,0.00055989,120]
[343148446,1732381855689,-903.62,0.00055989,120]
[343148447,1732381855699,-500.0,0.00055989,120]
[343148448,1732381855708,-903.62,0.00055989,120]
[343148449,1732381855717,-500.0,0.00055989,120]
[343148450,1732381855727,-903.62,0.00055989,120]
[343148451,1732381855737,-500.0,0.00055989,120]
[343148452,1732381855747,-903.62,0.00055989,120]
[343148453,1732381855759,-500.0,0.00055989,120]
[343148454,1732381855768,-903.62,0.00055989,120]
[343148455,1732381855779,-500.0,0.00055989,120]
[343148456,1732381855788,-903.62,0.00055989,120]
[343148457,1732381855798,-192.02,0.00055989,120]
[343148458,1732381855807,-903.62,0.00055989,120]
[343148459,1732381855817,-903.62,0.00055989,120]
[343148460,1732381855827,-500.0,0.00055989,120]
[343148461,1732381855836,-903.62,0.00055989,120]
[343148462,1732381855845,-500.0,0.00055989,120]
[343148463,1732381855855,-903.62,0.00055989,120]
[343148464,1732381855864,-500.0,0.00055989,120]
[343148465,1732381855873,-903.62,0.00055989,120]
[343148466,1732381855883,-903.62,0.00055989,120]
[343148467,1732381855891,-500.0,0.00055989,120]
[343148468,1732381855900,-903.62,0.00055989,120]
[343148469,1732381855909,-500.0,0.00055989,120]
[343148470,1732381855919,-903.62,0.00055989,120]
[343148471,1732381855928,-903.62,0.00055989,120]
[343148472,1732381855937,-500.0,0.00055989,120]
[343148473,1732381855946,-903.62,0.00055989,120]
[343148474,1732381855955,-500.0,0.00055989,120]
[343148475,1732381855965,-903.68273255,0.00055989,120]
[343148476,1732381855974,-500.0,0.00055989,120]
[343148477,1732381855983,-500.0,0.00055989,120]
[343148478,1732381855992,-407.44,0.00055989,120]
[343148479,1732381856002,-524.68,0.00055989,120]
[343148480,1732381856012,-524.68,0.00055989,120]
[343148481,1732381856022,-524.68,0.00055989,120]
[343148482,1732381856033,-804.88,0.00055989,120]
[343148483,1732381856043,-524.68,0.00055989,120]
[343148484,1732381856052,-804.88,0.00055989,120]
[343148485,1732381856062,-524.68,0.00055989,120]
[343148486,1732381856071,-524.68,0.00055989,120]
[343148487,1732381856080,-804.88,0.00055989,120]
[343148488,1732381856090,-524.68,0.00055989,120]
[343148489,1732381856099,-804.88,0.00055989,120]
[343148490,1732381856108,-524.68,0.00055989,120]
[343148491,1732381856119,-804.88,0.00055989,120]
[343148492,1732381856130,-524.68,0.00055989,120]
[343148493,1732381856140,-804.88,0.00055989,120]
[343148494,1732381856149,-524.68,0.00055989,120]
[343148495,1732381856159,-804.88,0.00055989,120]
[343148496,1732381856168,-804.88,0.00055989,120]
[343148497,1732381856178,-804.88,0.00055989,120]
[343148498,1732381856187,-524.68,0.00055989,120]
[343148499,1732381856197,-524.68,0.00055989,120]
[343148500,1732381856207,-804.88,0.00055989,120]
[343148501,1732381856217,-524.68,0.00055989,120]
[343148502,1732381856226,-804.88,0.00055989,120]
[343148503,1732381856235,-524.68,0.00055989,120]
[343148504,1732381856246,-804.88,0.00055989,120]
[343148505,1732381856255,-804.88,0.00055989,120]
[343148506,1732381856265,-524.68,0.00055989,120]
[343148507,1732381856274,-804.88,0.00055989,120]
[343148508,1732381856286,-524.68,0.00055989,120]
[343148509,1732381856296,-524.86256854,0.00055989,120]
[343148510,1732381856306,-804.88,0.00055989,120]
[343148511,1732381856315,-804.88,0.00055989,120]
[343148512,1732381856324,-804.88,0.00055989,120]
[343148513,1732381856333,-805.00868371,0.00055989,120]
[343148514,1732381856343,-500.0,0.00055989,120]
[343148515,1732381856352,-500.0,0.00055989,120]
[343148516,1732381856361,-500.0,0.00055989,120]
[343148517,1732381856372,-500.0,0.00055989,120]
[343148518,1732381856381,-500.0,0.00055989,120]
[343148519,1732381856390,-500.0,0.00055989,120]
[343148520,1732381856400,-500.0,0.00055989,120]
[343148521,1732381856409,-500.0,0.00055989,120]
[343148522,1732381856419,-500.0,0.00055989,120]
[343148523,1732381856428,-500.0,0.00055989,120]
[343148524,1732381856437,-500.0,0.00055989,120]
[343148525,1732381856446,-500.0,0.00055989,120]
[343148526,1732381856455,-500.0,0.00055989,120]
[343148527,1732381856464,-500.0,0.00055989,120]
[343148528,1732381856473,-500.0,0.00055989,120]
[343148529,1732381856482,-400.35134889,0.00055989,120]
[343148530,1732381856492,-813.28,0.00055989,120]
[343148531,1732381856501,-813.28,0.00055989,120]
[343148532,1732381856510,-813.28,0.00055989,120]
[343148533,1732381856519,-813.28,0.00055989,120]
[343148534,1732381856529,-813.28,0.00055989,120]
[343148535,1732381856538,-813.28,0.00055989,120]
[343148536,1732381856552,-813.28,0.00055989,120]
[343148537,1732381856561,-813.28,0.00055989,120]
[343148538,1732381856571,-813.28,0.00055989,120]
[343148539,1732381856582,-813.28,0.00055989,120]
[343148540,1732381856593,-813.28,0.00055989,120]
[343148541,1732381856603,-813.28,0.00055989,120]
[343148542,1732381856614,-500.0,0.00055989,120]
[343148543,1732381856623,-813.28,0.00055989,120]
[343148544,1732381856634,-500.0,0.00055989,120]
[343148545,1732381856644,-500.0,0.00055989,120]
[343148546,1732381856653,-813.28,0.00055989,120]
[343148547,1732381856663,-500.0,0.00055989,120]
[343148548,1732381856673,-525.96,0.00055989,120]
[343148549,1732381856683,-500.0,0.00055989,120]
[343148550,1732381856693,-525.96,0.00055989,120]
[343148551,1732381856702,-500.0,0.00055989,120]
[343148552,1732381856712,-525.96,0.00055989,120]
[343148553,1732381856722,-525.96,0.00055989,120]
[343148554,1732381856732,-813.28,0.00055989,120]
[343148555,1732381856742,-500.0,0.00055989,120]
[343148556,1732381856751,-813.28,0.00055989,120]
[343148557,1732381856760,-525.96,0.00055989,120]
[343148558,1732381856769,-525.96,0.00055989,120]
[343148559,1732381856779,-525.96,0.00055989,120]
[343148560,1732381856788,-525.96,0.00055989,120]
[343148561,1732381856797,-500.0,0.00055989,120]
[343148562,1732381856807,-525.96,0.00055989,120]
[343148563,1732381856816,-500.0,0.00055989,120]
[343148564,1732381856825,-813.28,0.00055989,120]
[343148565,1732381856834,-525.96,0.00055989,120]
[343148566,1732381856842,-500.0,0.00055989,120]
[343148567,1732381856850,-813.28288879,0.00055989,120]
[343148568,1732381856859,-475.38,0.00055989,120]
[343148569,1732381856868,-525.96,0.00055989,120]
[343148570,1732381856877,-525.96,0.00055989,120]
[343148571,1732381856887,-525.96,0.00055989,120]
[343148572,1732381856897,-536.79,0.00055989,120]
[343148573,1732381856907,-536.79,0.00055989,120]
[343148574,1732381856916,-536.79,0.00055989,120]
[343148575,1732381856926,-525.96,0.00055989,120]
[343148576,1732381856936,-536.79,0.00055989,120]
[343148577,1732381856946,-525.96,0.00055989,120]
[343148578,1732381856955,-536.79,0.00055989,120]
[343148579,1732381856965,-525.96,0.00055989,120]
[343148580,1732381856974,-536.79,0.00055989,120]
[343148581,1732381856984,-526.17961766,0.00055989,120]
[343148582,1732381856993,-536.79,0.00055989,120]
[343148583,1732381857002,-536.79,0.00055989,120]
[343148584,1732381857012,-536.79,0.00055989,120]
[343148585,1732381857021,-536.79,0.00055989,120]
[343148586,1732381857032,-536.80916476,0.00055989,120]
[343148587,1732381857042,-500.0,0.00055989,120]
[343148588,1732381857051,-500.0,0.00055989,120]
[343148589,1732381857061,-500.0,0.00055989,120]
[343148590,1732381857071,-500.0,0.00055989,120]
[343148591,1732381857080,-500.0,0.00055989,120]
[343148592,1732381857089,-500.0,0.00055989,120]
[343148593,1732381857099,-500.0,0.00055989,120]
[343148594,1732381857108,-500.0,0.00055989,120]
[343148595,1732381857118,-500.0,0.00055989,120]
[343148596,1732381857127,-500.0,0.00055989,120]
[343148597,1732381857137,-500.0,0.00055989,120]
[343148598,1732381857146,-500.0,0.00055989,120]
[343148599,1732381857155,-500.0,0.00055989,120]
[343148600,1732381857164,-177.78,0.00055989,120]
[343148601,1732381857174,-743.73,0.00055989,120]
[343148602,1732381857183,-743.73,0.00055989,120]
[343148603,1732381857194,-743.73,0.00055989,120]
[343148604,1732381857204,-743.73,0.00055989,120]
[343148605,1732381857214,-743.73,0.00055989,120]
[343148606,1732381857223,-743.73,0.00055989,120]
[343148607,1732381857232,-743.73,0.00055989,120]
[343148608,1732381857241,-500.0,0.00055989,120]
[343148609,1732381857251,-500.0,0.00055989,120]
[343148610,1732381857262,-743.73,0.00055989,120]
[343148611,1732381857271,-743.73,0.00055989,120]
[343148612,1732381857282,-743.73,0.00055989,120]
[343148613,1732381857292,-500.0,0.00055989,120]
[343148614,1732381857302,-743.73,0.00055989,120]
[343148615,1732381857312,-252.53927937,0.00055989,120]
[343148616,1732381857322,-743.73,0.00055989,120]
[343148617,1732381857332,-743.73,0.00055989,120]
[343148618,1732381857341,-743.73,0.00055989,120]
[343148619,1732381857351,-743.73,0.00055989,120]
[343148620,1732381857361,-743.73,0.00055989,120]
[343148621,1732381857371,-2980.58775526,0.00055989,60]
[343148622,1732381857380,-400.44156331,0.0005599,2]
[343148623,1732381857389,-240.26493799,0.0005599,2]
[343148624,1732381857403,-160.17662532,0.0005599,2]
[343148625,1732381857413,-5017.87859607,0.0005599,120]
[343148626,1732381857422,-63980756.32421627,0.0005599,60]
[343148627,1732381857432,-2000.0,0.0005599,60]
[343148628,1732381857441,-11872.91908234,0.0005599,120]
[343148629,1732381857451,-9313248.52601719,0.0005599,60]
[343148630,1732381857615,-2180.20950059,0.0005599,60]
[343148631,1732381857627,-18259.00739985,0.0005599,60]
[343148632,1732381857640,-17034.00650751,0.0005599,60]
[343148633,1732381857668,-291.4065971,0.00055989,120]
[343148634,1732381857679,-452.37954493,0.00055989,120]
[343148635,1732381857688,-39536.24034959,0.0005599,60]
[343148636,1732381857829,-535.5144795,0.0005599,60]
[343148637,1732381857862,-7769.70000023,0.0005599,60]
[343148638,1732381857873,-284.5129176,0.0005599,60]
[343148639,1732381857885,-344.8475,0.0005599,60]
[343148640,1732381857896,-10740.67995,0.0005599,60]
[343148641,1732381857907,-2100.59656442,0.0005599,60]
[343148642,1732381857942,-500.0,0.00054059,2]
[343148643,1732381857951,-500.0,0.00054794,120]
[343148644,1732381857960,-500.0,0.00054998,120]
[343148645,1732381857969,-466.06,0.00054999,120]
[343148646,1732381857978,-108788.58431878,0.0005599,60]
[343148647,1732381857989,-5274.8808454,0.0005599,60]
[343148648,1732381858045,-6038.10387159,0.0005599,60]
[343148649,1732381858057,-3552.4505567,0.0005599,60]
[343148650,1732381858068,-4313.76643442,0.0005599,60]
[343148651,1732381858079,-4884.66523687,0.0005599,60]
[343148652,1732381858091,-12910.90581941,0.0005599,60]
[343148653,1732381858103,-21617.10028008,0.0005599,60]
[343148654,1732381858141,-366.66428041,0.00054794,120]
[343148655,1732381858152,-133.33571959,0.00054794,120]
[343148656,1732381858163,-400.0,0.000549,20]
[343148657,1732381858173,-48127.16428041,0.0005599,60]
[343148658,1732381858185,-4371.65511373,0.0005599,60]
[343148659,1732381858196,-1030.1976,0.0005599,60]
[343148660,1732381858208,-301.62750913,0.0005599,60]
[343148661,1732381858220,-2345.91538688,0.0005599,60]
[343148662,1732381858231,-9748.35,0.0005599,60]
[343148663,1732381858283,-493.83499675,0.0005599,60]
[343148664,1732381858294,-731.39492379,0.0005599,60]
[343148665,1732381923742,250.0,0.00031,2]
[343148666,1732381924887,300.0,0.00033,2]
[343148667,1732381925974,350.0,0.00035,2]
[343148668,1732381927110,400.0,0.00037,2]
[343148669,1732381927205,181.62725,0.00037761,2]
[343148670,1732381928242,450.0,0.00039,2]
[343148671,1732381929363,500.0,0.00041,2]
[343148672,1732382072945,171.04,0.00041573,2]
[343148673,1732382074908,500.0,0.00041573,2]
[343148674,1732382075896,500.0,0.00041573,2]
[343148675,1732382242606,-550.0,0.00043,2]
[343148676,1732382242629,-181.62725,0.00044241,2]
[343148677,1732382242655,-483.0,0.000499,2]
[343148678,1732382242681,-1435.1926,0.000499,60]
[343148679,1732382242704,-263.8556,0.000499,2]
[343148680,1732382242726,-3139.0659,0.000499,2]
[343148681,1732382242749,-7417.0462,0.000499,2]
[343148682,1732382242772,-4574.2277,0.000499,2]
[343148683,1732382243050,-1864.62522615,0.00049999,2]
[343148684,1732382243075,-12191.35952385,0.0005,2]
[343148685,1732382336938,155.69,0.00041096,2]
[343148691,1732382689791,164.19311286,0.00041096,2]
[343148692,1732382708811,1059669.9814824,0.00013,2]
[343148693,1732382708874,594497.06156842,0.00013,2]
[343148694,1732382708909,569985.30600057,0.00013,2]
[343148695,1732382709157,404474.17770222,0.0001,2]
[343148696,1732382712562,14371.70753127,0.00025,2]
[343148697,1732382720568,1640.482506,9e-05,2]
[343148698,1732382741881,201409.01654665,0.0004,2]
[343148699,1732382752969,56068.95683772,9.99e-05,2]
[343148700,1732382758819,-271.22236525,0.00043562,120]
[343148701,1732382758849,-162.0,0.00049,120]
[343148702,1732382758874,-1202.7,0.00049774,2]
[343148703,1732382758899,-21969.23425542,0.0004989,2]
[343148704,1732382758925,-506.224,0.0004989,88]
[343148705,1732382758949,-22888.61937933,0.000499,2]
[343148706,1732382761348,150.0,0.0004,30]
[343148707,1732382761373,150.0,0.0004,30]
[343148708,1732382761395,150.05826454,0.0004,30]
[343148709,1732382761420,719.95945592,0.0004,30]
[343148711,1732382821124,150.0,0.00035,10]
[343148712,1732382821154,150.0,0.00035,10]
[343148713,1732382821177,150.0,0.00035,10]
[343148714,1732382821199,150.0,0.00035,10]
[343148715,1732382821221,150.0,0.00035,10]
[343148716,1732382821243,150.0,0.00035,10]
[343148717,1732382821267,150.0,0.00035,10]
[343148718,1732382821290,150.0,0.00035,10]
[343148719,1732382821313,150.0,0.00035,10]
[343148720,1732382821335,150.0,0.00035,10]
[343148721,1732382821365,150.0,0.00035,10]
[343148722,1732382821387,150.0,0.00035,10]
[343148723,1732382821414,150.0,0.00035,10]
[343148724,1732382821437,150.0,0.00035,10]
[343148725,1732382821652,150.0,0.00035,10]
[343148726,1732382821678,150.0,0.00035,10]
[343148727,1732382821700,150.0,0.00035,10]
[343148728,1732382821722,150.0,0.00035,10]
[343148729,1732382821744,150.0,0.00035,10]
[343148730,1732382821767,150.0,0.00035,10]
[343148731,1732382821789,206.478,0.00035,10]
[343148732,1732382821815,3480.97466458,0.00035,10]
[343148751,1732382851284,150.0,0.00025,2]
[343148752,1732382877200,188.8906912,0.00043,2]
[343148753,1732382879942,11006.59401493,0.0001,2]
[343148754,1732382881258,38804.51529387,0.000145,3]
[343148755,1732382881284,105752.79129319,0.000145,3]
[343148756,1732382883271,641946.62746188,0.00013,2]
[343148757,1732382883307,732300.81972095,0.00013,2]
[343148760,1732382923744,40766.01557576,0.00035,10]
[343148810,1732383031486,-248.0,0.00049672,2]
[343148812,1732383031495,-1396.49,0.00049672,2]
[343148814,1732383031505,-248.01394504,0.00049675,120]
[343148815,1732383031567,-1.98605496,0.00049675,120]
[343148816,1732383031581,-200.0,0.0004969,2]
[343148817,1732383031590,-2598.01394504,0.00049694,2]
[343148818,1732383031602,-29140.21149824,0.00049694,2]
[343148819,1732383031611,-178.78,0.00049709,120]
[343148820,1732383031620,-31433.01342067,0.000499,2]
[343148821,1732383031629,-1000.0,0.000499,2]
[343148822,1732383031639,-3840.5925,0.000499,2]
[343148823,1732383031648,-251.07481046,0.000499,2]
[343148824,1732383031657,-2500.0,0.000499,2]
[343148825,1732383031667,-1797.1111,0.000499,2]
[343148826,1732383031676,-163.1,0.00049969,120]
[343148827,1732383031685,-6062.38730562,0.00049989,2]
[343148828,1732383031695,-169.1,0.0004999,30]
[343148829,1732383031704,-50845.18089941,0.0005,2]
[343148830,1732383031768,-1840.0,0.0005,2]
[343148831,1732383031986,-3440.69462741,0.0005,2]
[343148832,1732383031999,-2439.82875796,0.0005,2]
[343148835,1732383032016,-6128.8727634,0.0005,2]
[343148868,1732383037787,-742.1653,0.000499,2]
[343148869,1732383037797,-190.14,0.0004999,30]
[343148870,1732383037806,-190.14,0.0004999,30]
[343148871,1732383037816,-18992.52269914,0.0005,2]
[343148872,1732383037830,-16282.08688405,0.0005,2]
[343148873,1732383037841,-44475.84801702,0.0005,2]
[343148874,1732383037850,-2000.0,0.0005,120]
[343148875,1732383037859,-285.3355608,0.0005,120]
[343148876,1732383037868,-440.0181,0.000501,2]
[343148877,1732383037878,-250.0,0.00050226,120]
[343148878,1732383037887,-416.26,0.00050382,120]
[343148879,1732383037897,-190.14,0.00050456,30]
[343148880,1732383037906,-500.0,0.00050465,31]
[343148881,1732383037920,-500.0,0.00050465,31]
[343148882,1732383037929,-500.0,0.00050465,120]
[343148883,1732383037938,-500.0,0.00050465,31]
[343148884,1732383037948,-500.0,0.00050465,31]
[343148885,1732383037959,-247.21494927,0.00050465,120]
[343148886,1732383037968,-500.0,0.00050465,31]
[343148887,1732383037979,-500.0,0.00050465,31]
[343148888,1732383037989,-500.0,0.00050465,120]
[343148889,1732383037999,-500.0,0.00050465,31]
[343148890,1732383038009,-500.0,0.00050465,31]
[343148891,1732383038018,-500.0,0.00050465,31]
[343148892,1732383038029,-500.0,0.00050465,120]
[343148893,1732383038039,-500.0,0.00050465,31]
[343148894,1732383038048,-500.0,0.00050465,31]
[343148895,1732383038057,-500.0,0.00050465,31]
[343148896,1732383038067,-500.0,0.00050465,120]
[343148897,1732383038076,-500.0,0.00050465,31]
[343148898,1732383038088,-500.0,0.00050465,31]
[343148899,1732383038097,-500.0,0.00050465,31]
[343148900,1732383038107,-500.0,0.00050465,31]
[343148901,1732383038116,-500.0,0.00050465,31]
[343148902,1732383038125,-500.0,0.00050465,120]
[343148903,1732383038134,-500.0,0.00050465,31]
[343148904,1732383038144,-411.85097624,0.00050465,31]
[343148905,1732383038153,-500.0,0.00050465,31]
[343148906,1732383038163,-500.0,0.00050465,31]
[343148907,1732383038173,-500.0,0.00050465,120]
[343148908,1732383038183,-500.0,0.00050465,31]
[343148909,1732383038193,-500.0,0.00050465,31]
[343148910,1732383038203,-500.0,0.00050465,31]
[343148911,1732383038213,-500.0,0.00050465,31]
[343148912,1732383038223,-500.0,0.00050465,31]
[343148913,1732383038232,-500.0,0.00050465,31]
[343148914,1732383038243,-500.0,0.00050465,31]
[343148915,1732383038253,-500.0,0.00050465,31]
[343148916,1732383038263,-500.0,0.00050465,31]
[343148917,1732383038273,-500.0,0.00050465,31]
[343148918,1732383038282,-235.89151827,0.00050465,31]
[343148919,1732383038292,-500.0,0.00050465,31]
[343148920,1732383038301,-47289.58,0.00050466,14]
[343148921,1732383038311,-166.6,0.00050496,2]
[343148922,1732383038320,-250.0,0.00050496,120]
[343148923,1732383038333,-999.99,0.00050496,10]
[343148924,1732383038342,-1000.0,0.00050542,120]
[343148925,1732383038351,-150.99,0.00050542,2]
[343148927,1732383038361,-6330.57,0.00050542,2]
[343148929,1732383038370,-786.57,0.00050542,2]
[343148931,1732383038379,-270.35,0.00050542,5]
[343148933,1732383038389,-266.6,0.00050542,10]
[343148934,1732383038398,-1108.72,0.00050603,120]
[343148935,1732383038408,-200.0,0.00050622,2]
[343148936,1732383038417,-3503.29,0.00050652,2]
[343148937,1732383038426,-150.0,0.00050671,2]
[343148938,1732383038435,-181.62725,0.00050721,120]
[343148939,1732383038445,-500.0,0.00050766,2]
[343148940,1732383038454,-858.23,0.00050803,2]
[343148941,1732383038464,-175.53,0.00050813,2]
[343148942,1732383038474,-23900.0,0.00050813,2]
[343148943,1732383038483,-500.0,0.00050831,2]
[343148944,1732383038493,-19909.78474996,0.000509,120]
[343148945,1732383038502,-27836.2611,0.00051,2]
[343148946,1732383038512,-230.00589483,0.00051001,23]
[343148947,1732383038522,-313.2800665,0.00051001,2]
[343148948,1732383038531,-1155.23,0.00051068,2]
[343148949,1732383038541,-10783.0,0.000511,120]
[343148950,1732383038552,-234.28332232,0.00051101,2]
[343148951,1732383038561,-1020.3867888,0.00051101,120]
[343148952,1732383038571,-25193.12914425,0.00051101,2]
[343148953,1732383038586,-22503.05387955,0.00051101,2]
[343148954,1732383038596,-403.53343899,0.00051101,120]
[343148955,1732383038606,-200.0,0.00051101,120]
[343148956,1732383038615,-699.78290428,0.00051101,120]
[343148957,1732383038625,-1730.7090475,0.00051101,4]
[343148958,1732383038635,-1999.999999,0.00051101,120]
[343148959,1732383038645,-530.32984582,0.00051101,120]
[343148960,1732383038655,-1863.66744931,0.00051101,2]
[343148961,1732383038664,-8648.81996636,0.00051101,120]
[343148962,1732383038674,-11802.81810769,0.00051101,4]
[343148963,1732383038686,-5995.34295971,0.00051101,4]
[343148964,1732383038697,-8086.92337631,0.00051101,4]
[343148965,1732383038936,-24405.43460115,0.00051101,4]
[343148966,1732383038947,-119489.29643086,0.00051101,4]
[343148967,1732383038957,-7341.99537193,0.00051101,120]
[343148968,1732383038967,-32067.39027939,0.00051101,2]
[343148969,1732383038977,-2764.30361447,0.00051101,2]
[343148970,1732383038988,-9534.59531192,0.00051101,2]
[343148971,1732383038998,-4943.5453863,0.00051101,2]
[343148972,1732383039008,-3632.75642618,0.00051101,2]
[343148973,1732383039017,-1002.20792297,0.00051101,2]
[343148974,1732383039026,-14573.95493447,0.00051101,2]
[343148975,1732383039035,-6659.71641838,0.00051101,4]
[343148976,1732383039045,-767.92222916,0.00051101,2]
[343148977,1732383039054,-2391.97988487,0.00051101,30]
[343148978,1732383039064,-746.41492049,0.00051101,2]
[343148979,1732383039074,-950.9180302,0.00051101,120]